bitfinex/quotes_BTCUSD_20251212
["timestamp","ask_amount","ask_price","bid_price","bid_amount"]
[1765557422213,0.3493945,90058.0,90057.0,0.002]
[1765557422429,1.65615705,90058.0,90057.0,0.002]
[1765557422642,0.04313683,90033.0,90032.0,0.01110716]
[1765557422863,0.01110728,90031.0,90028.0,0.01110765]
[1765557423116,0.07736043,90032.0,90030.0,0.22214817]
[1765557423333,0.02505,90038.0,90030.0,0.00099999]
[1765557423546,0.2907,90043.0,90040.0,0.00099999]
[1765557423758,0.2907,90043.0,90040.0,0.23422911]
[1765557423963,0.03419,90041.0,90040.0,0.00099999]
[1765557424422,0.02505,90052.0,90045.0,0.01110555]
[1765557424639,0.04317043,90047.0,90041.0,0.01110605]
[1765557424850,0.04317043,90047.0,90021.0,0.05001839]
[1765557424851,0.03419,90042.0,90035.0,0.01110679]
[1765557425061,0.0111058,90043.0,90030.0,0.00099999]
[1765557425062,0.03419,90036.0,90030.0,0.01210739]
[1765557425268,0.05924,90031.0,90030.0,0.00099999]
[1765557425476,0.2907,90040.0,90036.0,0.01110666]
[1765557425477,0.36535,90039.0,90036.0,0.01110666]
[1765557425714,0.01110654,90037.0,90033.0,0.01110703]
[1765557425948,0.01110642,90038.0,90033.0,0.01110703]
[1765557426160,0.06070654,90037.0,90030.0,0.00099999]
[1765557426366,0.04317043,90031.0,90030.0,0.01210739]
[1765557427253,0.31575,90039.0,90036.0,0.22213336]
[1765557427461,0.31575,90039.0,90036.0,0.23324002]
[1765557427668,0.31575,90039.0,90038.0,0.22212843]
[1765557427875,0.31575,90039.0,90036.0,0.01110666]
[1765557428093,0.04317043,90037.0,90031.0,0.01110728]
[1765557428350,0.03419,90032.0,90026.0,0.0111079]
[1765557428559,0.04317043,90033.0,90032.0,0.01110716]
[1765557428967,0.04317043,90033.0,90031.0,0.2221457]
[1765557429394,0.04317043,90033.0,90027.0,0.01110777]
[1765557429395,0.01110777,90027.0,90010.0,0.00099999]
[1765557429607,0.01110876,90019.0,90015.0,0.23329204]
[1765557429851,0.28143633,90011.0,90000.0,0.0804747]
[1765557430050,0.05428055,90008.0,90005.0,0.01111049]
[1765557430251,0.04529987,90010.0,90006.0,0.01111037]
[1765557430470,0.02505,90011.0,90008.0,0.01111012]
[1765557431230,0.02505,90011.0,90009.0,0.22219981]
[1765557431438,0.04317043,90010.0,90007.0,0.01111024]
[1765557431644,0.04317043,90010.0,90006.0,0.01283966]
[1765557431645,0.03419,90008.0,90006.0,0.235047]
[1765557432001,0.2907,90023.0,90018.0,0.01110888]
[1765557432141,0.02505,90033.0,90030.0,0.0111074]
[1765557432367,0.01110679,90035.0,90031.0,0.01110728]
[1765557432549,0.06732,90036.0,90032.0,0.01110716]
[1765557432757,0.0496,90035.0,90032.0,0.23325011]
[1765557432960,0.0496,90035.0,90030.0,0.00099999]
[1765557432961,0.2221457,90031.0,90030.0,0.00099999]
[1765557433224,0.2221457,90031.0,90016.0,0.01110913]
[1765557433225,0.04317043,90019.0,90016.0,0.01110913]
[1765557433506,0.04317043,90019.0,90016.0,0.23328981]
[1765557433718,0.03419,90017.0,90016.0,0.01110913]
[1765557433927,0.07736043,90017.0,90016.0,0.01110913]
[1765557434137,0.04317043,90015.0,90012.0,0.01110962]
[1765557434552,0.04317043,90015.0,90013.0,0.22219012]
[1765557434968,0.02505,90014.0,90013.0,0.22219012]
[1765557435722,0.10884,90014.0,90013.0,0.22219012]
[1765557435923,0.10884,90014.0,90011.0,0.23330458]
[1765557436286,0.03419,90012.0,90011.0,0.23330458]
[1765557437154,0.02505,90014.0,90013.0,0.22219012]
[1765557437510,0.2907,90019.0,90018.0,0.22217778]
[1765557437656,0.08575728,90031.0,90022.0,0.01110839]
[1765557437859,0.08575728,90031.0,90030.0,0.22214817]
[1765557437860,0.02505,90031.0,90030.0,0.22214817]
[1765557438066,0.01110642,90038.0,90034.0,0.23324493]
[1765557438261,0.01110654,90037.0,90034.0,0.01110691]
[1765557438446,0.23324189,90036.0,90031.0,0.01110728]
[1765557438662,0.04317043,90034.0,90032.0,0.01110716]
[1765557439068,0.04317043,90034.0,90031.0,0.01110728]
[1765557439265,0.04355876,90034.0,90031.0,0.01110728]
[1765557439470,0.22214077,90033.0,90029.0,0.01110753]
[1765557439670,0.01110802,90025.0,90020.0,0.01110864]
[1765557439893,0.01110802,90025.0,90019.0,0.22217496]
[1765557439894,0.03312,90021.0,90019.0,0.22217496]
[1765557440096,0.33387043,90025.0,90021.0,0.22217014]
[1765557440295,0.2907,90025.0,90022.0,0.01110839]
[1765557440606,0.2907,90025.0,90023.0,0.22216544]
[1765557440941,0.09230043,90032.0,90028.0,0.23326052]
[1765557441204,0.31361,90031.0,90028.0,0.23326052]
[1765557441534,0.31361,90031.0,90028.0,0.01110765]
[1765557441988,0.00038833,90034.0,90028.0,0.23487316]
[1765557442145,0.00038833,90034.0,90033.0,0.01209]
[1765557442355,0.00038833,90034.0,90033.0,0.23423077]
[1765557442778,0.00038833,90034.0,90033.0,0.23584364]
[1765557443156,0.00038833,90034.0,90033.0,0.28259364]
[1765557443361,0.00038833,90034.0,90033.0,0.22375364]
[1765557443628,0.00038833,90034.0,90025.0,0.01110802]
[1765557443629,0.07940833,90034.0,90026.0,0.22215804]
[1765557443835,0.03066833,90034.0,90027.0,0.01110777]
[1765557444072,0.03066833,90034.0,90028.0,0.2221531]
[1765557444313,0.01110716,90032.0,90028.0,0.23326075]
[1765557444574,0.02256,90028.0,90021.0,0.22217024]
[1765557444767,0.22217267,90021.0,90016.0,0.01110913]
[1765557444994,0.04317043,90017.0,90016.0,0.01110913]
[1765557445344,0.04317043,90027.0,90023.0,0.23327371]
[1765557445548,0.04317043,90027.0,90024.0,0.01110814]
[1765557446192,0.03028,90025.0,90020.0,0.01110864]
[1765557446416,0.23327415,90023.0,90020.0,0.01110864]
[1765557446591,0.23327415,90023.0,90016.0,0.01110913]
[1765557446592,0.04317043,90019.0,90017.0,0.01110901]
[1765557446750,0.07345043,90019.0,90017.0,0.01110901]
[1765557446960,0.07902,90018.0,90017.0,0.01110901]
[1765557447403,0.07902,90018.0,90012.0,0.01110962]
[1765557447545,0.05284,90015.0,90014.0,0.01110938]
[1765557447951,0.10158,90015.0,90010.0,0.00099999]
[1765557448206,0.04317043,90011.0,90010.0,0.00099999]
[1765557448575,0.04317043,90011.0,90007.0,0.01111024]
[1765557448576,0.04317043,90010.0,90007.0,0.01111024]
[1765557448818,0.01110975,90011.0,90007.0,0.01111024]
[1765557449315,0.0111095,90013.0,90008.0,0.23331147]
[1765557449498,0.04874,90014.0,90010.0,0.23330729]
[1765557449703,0.22219012,90013.0,90008.0,0.01111012]
[1765557449932,0.23330481,90011.0,90010.0,0.001]
[1765557450309,0.01110987,90010.0,90005.0,0.01111049]
[1765557450543,0.01111098,90001.0,89997.0,0.01111148]
[1765557450747,0.23333493,90000.0,89995.0,0.01111172]
[1765557450976,0.05428092,90005.0,90000.0,0.00099999]
[1765557451153,0.05428092,90005.0,89997.0,0.01111148]
[1765557451154,0.02256,89999.0,89998.0,0.01111135]
[1765557451365,0.04317043,90001.0,90000.0,0.00099999]
[1765557451789,0.04317043,90001.0,90000.0,0.00111641]
[1765557451998,0.07345043,90001.0,90000.0,0.00111641]
[1765557452210,0.12219043,90001.0,90000.0,0.00111641]
[1765557452828,0.07902,90001.0,90000.0,0.00111641]
[1765557453047,0.07902,90001.0,90000.0,0.00011642]
[1765557453415,0.45415777,90001.0,90000.0,0.00011642]
[1765557453626,1.4973282,90001.0,90000.0,0.00111642]
[1765557454435,1.4973282,90001.0,90000.0,0.00011642]
[1765557454759,1.4983282,90001.0,90000.0,0.00011642]
[1765557455399,1.55612228,89988.0,89973.0,0.01111444]
[1765557455604,1.62672228,89988.0,89987.0,0.00035639]
[1765557455802,1.67546228,89988.0,89987.0,0.00035639]
[1765557456591,0.01111444,89973.0,89960.0,0.22331975]
[1765557456776,0.25,89980.0,89960.0,0.22331975]
[1765557456777,0.04317043,89961.0,89960.0,0.00011655]
[1765557456973,0.65776899,89961.0,89960.0,0.00011655]
[1765557457290,0.61459856,89961.0,89960.0,0.00011655]
[1765557457492,0.65776899,89961.0,89960.0,0.00011655]
[1765557457698,0.43545043,89961.0,89960.0,0.00011655]
[1765557457921,0.5198882,89961.0,89960.0,0.00011655]
[1765557458125,0.5198882,89961.0,89960.0,0.00111655]
[1765557458286,1.5198882,89961.0,89960.0,0.00011655]
[1765557459371,1.5198882,89961.0,89960.0,0.00111655]
[1765557459572,1.5562137,89951.0,89950.0,0.0002]
[1765557459743,1.74574132,89951.0,89950.0,0.00031656]
[1765557460986,1.74874132,89951.0,89950.0,0.00031656]
[1765557461246,1.75174132,89951.0,89950.0,0.00031656]
[1765557461413,1.74874132,89951.0,89950.0,0.00031656]
[1765557461586,1.75274132,89951.0,89950.0,0.00031656]
[1765557461804,1.75274132,89951.0,89930.0,0.00119999]
[1765557461805,1.55626315,89931.0,89930.0,0.0002]
[1765557462018,1.62686315,89931.0,89930.0,0.0003166]
[1765557462206,1.67560315,89931.0,89930.0,0.0003166]
[1765557462699,1.67560315,89931.0,89930.0,0.00202711]
[1765557462956,1.63243272,89931.0,89930.0,0.00202711]
[1765557463098,1.67560315,89931.0,89930.0,0.00202711]
[1765557463457,0.67860315,89931.0,89930.0,0.00202711]
[1765557463766,1.67860315,89931.0,89930.0,0.00202711]
[1765557464214,0.51310508,89926.0,89925.0,9e-05]
[1765557464413,1.77983911,89926.0,89925.0,9e-05]
[1765557464534,1.82857911,89926.0,89925.0,9e-05]
[1765557465375,0.82857911,89926.0,89925.0,9e-05]
[1765557465753,1.82857911,89926.0,89925.0,9e-05]
[1765557465943,1.55631262,89911.0,89910.0,0.0002]
[1765557466148,1.65309262,89911.0,89910.0,0.0002]
[1765557467443,1.65509262,89911.0,89910.0,0.0002]
[1765557467661,1.66009262,89911.0,89910.0,0.0002]
[1765557468640,0.51319168,89891.0,89890.0,0.0002]
[1765557468855,1.60920211,89891.0,89890.0,0.0002]
[1765557469040,1.67570211,89891.0,89890.0,0.0002]
[1765557469450,1.67570211,89891.0,89880.0,0.00119999]
[1765557469451,1.0,89890.0,89880.0,0.00119999]
[1765557469665,0.01112941,89852.0,89847.0,0.01113003]
[1765557469975,0.04317043,89841.0,89840.0,0.0002]
[1765557470206,1.07234043,89841.0,89840.0,0.0002]
[1765557470558,1.07234043,89841.0,89840.0,0.00127817]
[1765557470559,1.40821043,89841.0,89840.0,0.00127817]
[1765557470808,0.04317043,89818.0,89816.0,0.01113387]
[1765557471024,0.04317043,89818.0,89790.0,0.00099999]
[1765557471025,0.2907,89819.0,89814.0,0.01113412]
[1765557471227,0.02301,89822.0,89819.0,0.0111335]
[1765557471355,0.04317043,89820.0,89819.0,0.0111335]
[1765557471585,0.40821043,89820.0,89819.0,0.0111335]
[1765557471952,0.04317043,89820.0,89819.0,0.01274637]
[1765557472233,0.04517,89820.0,89819.0,0.00161287]
[1765557472467,0.04317043,89813.0,89810.0,0.0121346]
[1765557472597,0.04317043,89813.0,89812.0,0.23382175]
[1765557472598,1.04317043,89813.0,89812.0,0.23382175]
[1765557472797,0.07434,89813.0,89810.0,0.22269235]
[1765557472998,0.09535043,89811.0,89810.0,0.23382696]
[1765557473201,0.09535043,89811.0,89810.0,0.01113461]
[1765557473385,0.14052043,89811.0,89810.0,0.01113461]
[1765557474028,1.04317043,89807.0,89806.0,0.23383737]
[1765557474274,0.04317043,89807.0,89806.0,0.23545024]
[1765557474841,0.02301,89811.0,89808.0,0.01113486]
[1765557475044,0.02917,89807.0,89806.0,0.00161287]
[1765557475382,0.04317043,89805.0,89803.0,9e-05]
[1765557475580,0.07434,89804.0,89803.0,9e-05]
[1765557475922,0.07434,89804.0,89803.0,0.00170287]
[1765557476199,0.11751043,89804.0,89803.0,9e-05]
[1765557476501,0.07434,89804.0,89803.0,9e-05]
[1765557476729,1.11288837,89804.0,89803.0,9e-05]
[1765557477119,1.1560588,89804.0,89803.0,9e-05]
[1765557477303,1.11288837,89804.0,89803.0,0.00109]
[1765557477453,1.11751043,89804.0,89803.0,0.00409]
[1765557477684,0.42464043,89804.0,89803.0,0.00409]
[1765557478011,0.04317043,89804.0,89803.0,0.00409]
[1765557478756,0.07234043,89804.0,89803.0,0.00409]
[1765557479056,1.11751043,89804.0,89803.0,0.00409]
[1765557479195,1.11751043,89804.0,89790.0,0.00099999]
[1765557479196,0.01113672,89793.0,89790.0,0.00099999]
[1765557479397,0.04317043,89779.0,89778.0,0.01113858]
[1765557479640,0.04317043,89784.0,89783.0,0.01113796]
[1765557479845,0.04317043,89777.0,89752.0,0.03538]
[1765557480055,0.04317043,89776.0,89775.0,0.01113895]
[1765557480198,0.01113871,89777.0,89773.0,0.01]
[1765557480409,0.01113846,89779.0,89773.0,0.01]
[1765557480410,1.02917,89774.0,89773.0,0.01]
[1765557480607,0.01113846,89779.0,89773.0,0.01]
[1765557480608,0.001,89779.0,89778.0,0.03197]
[1765557480830,0.5,89820.0,89778.0,0.03197]
[1765557480831,0.31371,89801.0,89797.0,0.01113622]
[1765557480994,0.2907,89798.0,89792.0,0.01113684]
[1765557481415,0.2907,89798.0,89795.0,0.01113647]
[1765557481603,0.2226948,89810.0,89802.0,0.0111356]
[1765557481604,0.01113498,89807.0,89802.0,0.0111356]
[1765557481786,0.01113486,89808.0,89802.0,0.0111356]
[1765557481787,0.2907,89805.0,89802.0,0.22271218]
[1765557481951,0.02301,89811.0,89807.0,0.23383407]
[1765557482154,0.48,89815.0,89810.0,0.00099999]
[1765557482318,0.23381915,89813.0,89810.0,0.00261286]
[1765557482524,0.04317043,89811.0,89810.0,0.00261286]
[1765557482930,0.04317043,89812.0,89810.0,0.00161287]
[1765557483145,0.04317043,89812.0,89811.0,0.22268987]
[1765557483346,0.04317043,89812.0,89810.0,0.00161287]
[1765557483762,0.04317043,89812.0,89811.0,0.22268987]
[1765557484018,0.05430331,89824.0,89821.0,0.01113325]
[1765557484202,0.01113412,89814.0,89810.0,0.002]
[1765557484337,0.04317043,89812.0,89811.0,0.00172959]
[1765557484570,0.04317043,89812.0,89804.0,0.01113536]
[1765557484571,0.22278165,89774.0,89773.0,0.01]
[1765557484786,1.09535043,89774.0,89773.0,0.01038442]
[1765557484989,0.04317043,89777.0,89773.0,0.01038442]
[1765557485200,0.71445165,89774.0,89773.0,0.01038442]
[1765557485608,1.58782165,89774.0,89773.0,0.01038442]
[1765557485805,0.31987,89774.0,89773.0,0.01038442]
[1765557486084,0.2907,89774.0,89773.0,0.01038442]
[1765557486420,0.04317043,89776.0,89774.0,0.22278165]
[1765557486642,0.24573903,89796.0,89785.0,0.23389067]
[1765557486643,0.04317043,89786.0,89785.0,0.23389067]
[1765557486854,0.04317043,89793.0,89790.0,0.01213708]
[1765557487055,0.02301,89796.0,89790.0,0.01113709]
[1765557487255,0.04317043,89791.0,89790.0,0.01113709]
[1765557488049,0.0543074,89791.0,89785.0,0.01113771]
[1765557488250,0.04317043,89779.0,89777.0,0.01113871]
[1765557488459,0.04317043,89779.0,89778.0,0.22277172]
[1765557489531,0.04317043,89779.0,89776.0,0.01113883]
[1765557489832,0.04317043,89779.0,89776.0,0.23391432]
[1765557490031,0.04317043,89779.0,89778.0,0.002]
[1765557490258,0.04317043,89779.0,89776.0,0.23391432]
[1765557490441,0.04317043,89774.0,89771.0,0.01113945]
[1765557491081,0.04317043,89774.0,89765.0,0.22280271]
[1765557491082,0.09696043,89774.0,89766.0,0.01114007]
[1765557491195,0.09696043,89774.0,89767.0,0.01113995]
[1765557491553,0.09696043,89774.0,89766.0,0.01114007]
[1765557491761,0.09696043,89774.0,89753.0,0.01114168]
[1765557491762,1.14213043,89774.0,89753.0,0.01114168]
[1765557491959,1.43283043,89774.0,89759.0,0.01114094]
[1765557492195,1.43283043,89774.0,89767.0,0.01113995]
[1765557492391,1.43283043,89774.0,89767.0,0.23393781]
[1765557492392,1.38766043,89774.0,89767.0,0.23393781]
[1765557492596,0.31532,89774.0,89771.0,0.01113945]
[1765557492725,1.33548043,89774.0,89773.0,0.01138442]
[1765557492935,0.33387043,89774.0,89773.0,0.01338442]
[1765557493136,1.63099208,89774.0,89773.0,0.01338442]
[1765557493316,1.63099208,89774.0,89773.0,0.01038442]
[1765557493518,1.63199208,89774.0,89773.0,0.00100442]
[1765557493836,1.63199208,89774.0,89773.0,4.42e-06]
[1765557494068,1.63099208,89774.0,89773.0,4.42e-06]
[1765557494279,0.55865208,89774.0,89773.0,4.42e-06]
[1765557494476,0.33687043,89774.0,89773.0,4.42e-06]
[1765557494942,0.33887043,89774.0,89773.0,4.42e-06]
[1765557495799,0.33587043,89774.0,89773.0,4.42e-06]
[1765557496231,0.45175035,89774.0,89773.0,4.42e-06]
[1765557496463,0.42019078,89774.0,89773.0,4.42e-06]
[1765557496666,0.33548043,89774.0,89773.0,4.42e-06]
[1765557496872,0.33548043,89774.0,89773.0,0.00100442]
[1765557497164,0.32148,89774.0,89773.0,4.42e-06]
[1765557497373,1.42004058,89774.0,89773.0,0.00100442]
[1765557497647,1.5305482,89774.0,89773.0,4.42e-06]
[1765557497852,1.52132805,89774.0,89773.0,4.42e-06]
[1765557498053,1.52132805,89774.0,89773.0,0.00100442]
[1765557498215,1.5315472,89774.0,89773.0,4.42e-06]
[1765557498412,0.01114317,89741.0,89734.0,0.01114404]
[1765557498696,0.01114317,89741.0,89732.0,0.01114429]
[1765557498697,0.04317043,89733.0,89732.0,0.01114429]
[1765557498917,0.04317043,89733.0,89723.0,0.0178]
[1765557498918,0.02844,89689.0,89680.0,0.0002]
[1765557499117,0.03415901,89694.0,89684.0,0.01115026]
[1765557499332,1.0,89684.0,89681.0,9e-05]
[1765557499541,0.01114926,89692.0,89686.0,0.01115001]
[1765557499700,0.04317043,89684.0,89681.0,9e-05]
[1765557499899,0.04317043,89684.0,89681.0,0.01124063]
[1765557500109,1.04317043,89682.0,89681.0,9e-05]
[1765557500327,0.02855835,89682.0,89681.0,9e-05]
[1765557500553,1.07193043,89682.0,89681.0,9e-05]
[1765557500756,1.11483043,89682.0,89681.0,9e-05]
[1765557500931,1.04317043,89682.0,89681.0,9e-05]
[1765557501176,0.01115386,89655.0,89632.0,0.01115672]
[1765557501331,1.60697114,89653.0,89622.0,0.01115797]
[1765557501675,1.60697114,89653.0,89604.0,0.02348]
[1765557501676,1.0,89653.0,89650.0,0.01115448]
[1765557501905,0.952,89656.0,89637.0,0.2231202]
[1765557502103,0.952,89656.0,89629.0,0.04501]
[1765557502104,1.0,89678.0,89672.0,0.01115175]
[1765557502220,0.01115274,89664.0,89652.0,0.01226924]
[1765557502424,0.50518,89653.0,89652.0,0.01226924]
[1765557502628,0.8447,89672.0,89668.0,0.01115225]
[1765557502875,0.01115361,89657.0,89652.0,0.01226924]
[1765557503078,1.0,89653.0,89652.0,0.001115]
[1765557503254,1.04317043,89653.0,89652.0,0.001115]
[1765557503825,1.04317043,89653.0,89652.0,0.005115]
[1765557504048,1.60146275,89653.0,89652.0,0.001115]
[1765557504296,0.2907,89636.0,89634.0,0.000457]
[1765557504499,1.0,89623.0,89616.0,0.01115872]
[1765557504702,0.0111571,89629.0,89618.0,0.01115847]
[1765557504703,0.04317043,89621.0,89618.0,0.01115847]
[1765557504901,0.04317043,89627.0,89626.0,0.01115747]
[1765557505109,1.0,89622.0,89618.0,0.01115847]
[1765557505336,1.0,89622.0,89610.0,4.322e-05]
[1765557505337,0.04317043,89611.0,89610.0,0.01120268]
[1765557505541,0.00038613,89622.0,89619.0,0.23432435]
[1765557505758,0.00038613,89622.0,89619.0,0.01115834]
[1765557505962,0.04317043,89614.0,89613.0,0.01115909]
[1765557506177,0.00038613,89622.0,89610.0,0.01120268]
[1765557506178,1.0,89613.0,89610.0,0.01120268]
[1765557506393,0.04317043,89611.0,89610.0,4.322e-05]
[1765557506602,1.06768043,89611.0,89610.0,0.00304322]
[1765557506819,0.01115859,89617.0,89610.0,0.00304322]
[1765557507020,0.842,89620.0,89619.0,0.001]
[1765557507430,0.00161,89620.0,89613.0,0.002]
[1765557507622,0.04317043,89613.0,89610.0,0.01120268]
[1765557507831,1.0,89612.0,89610.0,0.00204322]
[1765557508133,1.04317043,89611.0,89610.0,0.00504322]
[1765557508771,0.04328613,89622.0,89610.0,0.00504322]
[1765557508772,1.04317043,89618.0,89617.0,0.01115859]
[1765557508977,0.00038613,89622.0,89620.0,0.22316447]
[1765557509259,0.04317043,89621.0,89620.0,0.22316447]
[1765557509483,0.04355656,89622.0,89620.0,0.22316447]
[1765557509690,0.04317043,89621.0,89620.0,0.22316447]
[1765557509904,0.04317043,89620.0,89619.0,0.01115834]
[1765557510110,0.00038613,89622.0,89610.0,4.322e-05]
[1765557510111,0.01115872,89616.0,89610.0,4.322e-05]
[1765557510319,1.04317043,89611.0,89610.0,4.322e-05]
[1765557511147,1.04451,89611.0,89610.0,4.322e-05]
[1765557511353,1.04478043,89611.0,89610.0,4.322e-05]
[1765557511507,1.08768043,89611.0,89610.0,4.322e-05]
[1765557511954,1.0,89611.0,89610.0,4.322e-05]
[1765557512179,0.23470537,89622.0,89619.0,0.2343253]
[1765557512180,0.00038613,89622.0,89619.0,0.2343253]
[1765557512935,0.00038613,89622.0,89621.0,0.22316198]
[1765557513122,0.04355656,89622.0,89621.0,0.22316198]
[1765557513532,0.00038613,89622.0,89621.0,0.22316198]
[1765557513930,0.00038613,89622.0,89621.0,0.26817198]
[1765557514609,0.00038613,89622.0,89621.0,0.34535503]
[1765557514837,0.00038613,89622.0,89621.0,0.39537342]
[1765557515012,0.00038613,89622.0,89621.0,0.43856142]
[1765557515157,0.00038613,89622.0,89621.0,0.39537342]
[1765557515355,0.00038613,89622.0,89621.0,0.39637342]
[1765557515799,0.04317043,89660.0,89659.0,0.01115336]
[1765557516038,0.21667043,89660.0,89659.0,0.01121749]
[1765557516251,0.19067043,89660.0,89659.0,0.01121749]
[1765557516416,0.018,89680.0,89659.0,0.01121749]
[1765557516417,0.01115088,89679.0,89672.0,0.01115175]
[1765557516616,0.04317043,89674.0,89673.0,0.01115162]
[1765557516817,0.05432205,89673.0,89665.0,0.01115262]
[1765557517000,0.04317043,89673.0,89670.0,0.011152]
[1765557517198,0.011151,89678.0,89673.0,0.01115162]
[1765557517420,0.01115125,89676.0,89673.0,0.01115162]
[1765557517623,0.01115137,89675.0,89671.0,0.01115187]
[1765557517845,0.01115137,89675.0,89639.0,0.07349839]
[1765557517846,0.01115274,89664.0,89659.0,6.413e-05]
[1765557518047,1.31157534,89660.0,89659.0,6.413e-05]
[1765557518250,1.42208296,89660.0,89659.0,6.413e-05]
[1765557518464,0.99991534,89660.0,89659.0,6.413e-05]
[1765557518666,0.50298043,89660.0,89659.0,6.413e-05]
[1765557518839,0.11541,89660.0,89659.0,6.413e-05]
[1765557519059,0.15758043,89660.0,89659.0,6.413e-05]
[1765557519289,0.00161,89660.0,89659.0,6.413e-05]
[1765557519470,0.00261,89660.0,89659.0,6.413e-05]
[1765557519673,1.19209458,89660.0,89659.0,6.413e-05]
[1765557519898,1.19009458,89660.0,89659.0,6.413e-05]
[1765557520103,0.83881,89660.0,89659.0,6.413e-05]
[1765557520313,1.38138043,89660.0,89659.0,6.413e-05]
[1765557520518,0.01115585,89639.0,89632.0,0.25777049]
[1765557520716,0.05432678,89635.0,89632.0,0.03475323]
[1765557520925,0.04317043,89634.0,89633.0,0.0111566]
[1765557521332,0.04317043,89638.0,89637.0,0.0111561]
[1765557521534,0.01115548,89642.0,89637.0,0.0111561]
[1765557521730,0.04317043,89638.0,89637.0,0.0111561]
[1765557521944,0.01115635,89635.0,89632.0,0.02359651]
[1765557522122,1.0,89634.0,89632.0,0.00011651]
[1765557522330,1.04317043,89633.0,89632.0,0.00211651]
[1765557522888,1.04317043,89633.0,89632.0,0.00011651]
[1765557522889,0.30057043,89633.0,89632.0,0.00011651]
[1765557523114,0.04317043,89635.0,89632.0,0.01127323]
[1765557523319,0.2774545,89635.0,89632.0,0.00011651]
[1765557523675,0.003,89633.0,89632.0,0.00011651]
[1765557523877,0.01115511,89645.0,89639.0,0.01115585]
[1765557524206,0.01115386,89655.0,89650.0,0.01115448]
[1765557524453,0.23422604,89657.0,89654.0,0.02338]
[1765557524454,0.01115361,89657.0,89654.0,0.02338]
[1765557524747,0.01115399,89654.0,89650.0,0.01115448]
[1765557524952,0.01115461,89649.0,89646.0,0.01115498]
[1765557525088,0.22309014,89650.0,89646.0,0.01115498]
[1765557525089,0.01115448,89650.0,89646.0,0.01115498]
[1765557525291,0.01115411,89653.0,89650.0,0.01115448]
[1765557525506,0.01115424,89652.0,89649.0,0.01115461]
[1765557525755,0.002,89657.0,89655.0,0.01115386]
[1765557525953,0.04317043,89656.0,89653.0,0.02317]
[1765557526158,0.04317043,89654.0,89653.0,0.02317]
[1765557526362,0.04317043,89654.0,89652.0,0.01115424]
[1765557526560,0.04317043,89653.0,89648.0,0.01115473]
[1765557526819,0.01115498,89646.0,89639.0,0.01115585]
[1765557527174,0.04317043,89640.0,89632.0,0.01811651]
[1765557527400,0.04317043,89640.0,89632.0,0.00011651]
[1765557527617,0.04317043,89640.0,89637.0,0.0111561]
[1765557527794,0.04317043,89640.0,89637.0,0.23427824]
[1765557527999,0.22311566,89640.0,89635.0,0.01115635]
[1765557528211,0.04317043,89633.0,89632.0,0.01127323]
[1765557528430,1.0,89633.0,89632.0,0.00011651]
[1765557528589,0.22312961,89634.0,89632.0,0.00011651]
[1765557528790,1.04317043,89633.0,89632.0,0.00011651]
[1765557529169,1.05339988,89633.0,89632.0,0.00011651]
[1765557529395,1.12505988,89633.0,89632.0,0.00011651]
[1765557529591,1.43933172,89633.0,89632.0,0.00011651]
[1765557530252,1.41057172,89633.0,89632.0,0.00011651]
[1765557530589,1.11987172,89633.0,89632.0,0.00011651]
[1765557531011,1.07697172,89633.0,89632.0,0.00011651]
[1765557531219,1.07697172,89633.0,89632.0,0.00211651]
[1765557531420,1.11910172,89633.0,89632.0,0.00211651]
[1765557531642,1.11910172,89633.0,89632.0,0.00011651]
[1765557531878,1.12110172,89633.0,89632.0,0.00011651]
[1765557532063,1.07793129,89633.0,89632.0,0.00011651]
[1765557532270,1.41180172,89633.0,89632.0,0.00011651]
[1765557532471,1.52230934,89633.0,89632.0,0.00011651]
[1765557532710,1.57915447,89633.0,89632.0,0.00011651]
[1765557532848,1.58015447,89633.0,89632.0,0.00011651]
[1765557533031,1.50851891,89633.0,89632.0,0.00011651]
[1765557533241,1.0,89611.0,89610.0,4.322e-05]
[1765557533463,0.00011576,89611.0,89610.0,0.22323259]
[1765557533664,0.00011576,89611.0,89610.0,0.29393259]
[1765557534289,0.01023882,89623.0,89621.0,0.22316198]
[1765557534530,0.003,89633.0,89630.0,0.234295]
[1765557534884,0.01024088,89650.0,89645.0,0.01091235]
[1765557535098,0.01035755,89650.0,89647.0,0.01115486]
[1765557535314,0.01035755,89650.0,89648.0,0.22309386]
[1765557535519,0.00011667,89650.0,89648.0,0.22309386]
[1765557535733,0.00011667,89650.0,89649.0,0.0707]
[1765557535915,0.00011667,89650.0,89649.0,0.14913752]
[1765557536155,0.00011667,89650.0,89649.0,0.0707]
[1765557537432,0.00011667,89650.0,89649.0,0.16390639]
[1765557538075,0.01115038,89683.0,89680.0,0.01115075]
[1765557538312,0.01024354,89685.0,89683.0,0.01115038]
[1765557538526,0.01036016,89685.0,89683.0,0.01115038]
[1765557538728,0.01036016,89685.0,89681.0,0.01115063]
[1765557538943,0.01036016,89685.0,89682.0,0.2341595]
[1765557539150,0.00011662,89685.0,89682.0,0.2760495]
[1765557539358,0.001,89683.0,89682.0,0.2341595]
[1765557540042,0.001,89683.0,89682.0,0.3048595]
[1765557540484,0.00011662,89685.0,89682.0,0.2341595]
[1765557540694,0.00011662,89685.0,89683.0,0.2230077]
[1765557540957,0.00111662,89685.0,89684.0,0.02881]
[1765557541187,0.01023768,89707.0,89684.0,0.0707]
[1765557541396,0.02357836,89739.0,89734.0,0.22288077]
[1765557541609,0.0004,89740.0,89737.0,0.01114367]
[1765557541819,0.0004,89740.0,89736.0,0.01114379]
[1765557541820,0.01114342,89739.0,89736.0,0.01114379]
[1765557542031,0.0007889,89740.0,89738.0,0.22287102]
[1765557542246,0.04317043,89738.0,89737.0,0.01114367]
[1765557542457,0.00161,89739.0,89738.0,0.22287102]
[1765557542458,0.04478043,89739.0,89738.0,0.22287102]
[1765557542667,0.0007889,89740.0,89738.0,0.22287102]
[1765557543102,0.0007889,89740.0,89736.0,0.001]
[1765557543309,1.26604393,89737.0,89736.0,0.001]
[1765557543544,0.04478043,89737.0,89736.0,0.001]
[1765557543753,0.0007889,89740.0,89737.0,0.24772717]
[1765557544176,0.2228735,89737.0,89736.0,0.001]
[1765557544402,1.2538635,89737.0,89736.0,0.001]
[1765557544626,0.01114591,89719.0,89711.0,0.0111469]
[1765557544814,0.0111464,89715.0,89708.0,0.23409136]
[1765557545053,0.00161,89719.0,89713.0,0.01114665]
[1765557545054,0.01114591,89719.0,89713.0,0.01114665]
[1765557545262,0.02046,89722.0,89719.0,0.01114591]
[1765557545472,0.02046,89722.0,89713.0,0.01114665]
[1765557545473,1.22291816,89720.0,89713.0,0.03254665]
[1765557545684,0.04317043,89717.0,89716.0,0.01114628]
[1765557545957,0.04317043,89721.0,89718.0,0.01114603]
[1765557546164,0.04317043,89728.0,89722.0,0.22291076]
[1765557546335,0.2907,89735.0,89721.0,0.01114566]